[Event "Late-Titled-Tuesday-Blitz-June-25-2024"]
[Site "Chess.com"]
[Date "2024.06.25"]
[Round "1"]
[White "SpeedofLight0"]
[Black "subham777"]
[Result "1-0"]
[WhiteElo "3149"]
[BlackElo "2531"]
[TimeControl "180+1"]
[EndTime "14:06:42 PDT"]
[Termination "SpeedofLight0 won on time"]

1. d4 {[%clk 0:03:00.9]} 1... d5 {[%clk 0:02:57.9]} 2. Nc3 {[%clk 0:03:00.1]}
2... Nf6 {[%clk 0:02:57.4]} 3. Bf4 {[%clk 0:03:00.7]} 3... a6 {[%clk 0:02:53.6]}
4. e3 {[%clk 0:03:00.4]} 4... e6 {[%clk 0:02:52]} 5. g4 {[%clk 0:03:00.1]} 5...
Bb4 {[%clk 0:02:50.2]} 6. Bd3 {[%clk 0:02:52.4]} 6... c5 {[%clk 0:02:48.9]} 7.
g5 {[%clk 0:02:50.9]} 7... Nfd7 {[%clk 0:02:45]} 8. Nf3 {[%clk 0:02:50.5]} 8...
Nc6 {[%clk 0:02:35.7]} 9. h4 {[%clk 0:02:48.9]} 9... Qb6 {[%clk 0:02:18]} 10. a3
{[%clk 0:02:43.8]} 10... Ba5 {[%clk 0:02:09.9]} 11. b4 {[%clk 0:01:58.5]} 11...
cxb4 {[%clk 0:02:08.3]} 12. Na4 {[%clk 0:01:58.5]} 12... Qa7 {[%clk 0:02:08.3]}
13. axb4 {[%clk 0:01:49.9]} 13... Nxb4 {[%clk 0:01:56.9]} 14. O-O {[%clk
0:01:49.7]} 14... Nxd3 {[%clk 0:01:55.2]} 15. Qxd3 {[%clk 0:01:49.4]} 15... O-O
{[%clk 0:01:53.9]} 16. h5 {[%clk 0:01:36]} 16... f6 {[%clk 0:01:40.4]} 17. h6
{[%clk 0:01:30.7]} 17... g6 {[%clk 0:01:38.7]} 18. Bd6 {[%clk 0:01:29.9]} 18...
Re8 {[%clk 0:01:28.3]} 19. Nc5 {[%clk 0:01:27.8]} 19... Nxc5 {[%clk 0:01:19.3]}
20. dxc5 {[%clk 0:01:25.1]} 20... Bd8 {[%clk 0:01:17.7]} 21. Qd4 {[%clk
0:01:21.1]} 21... e5 {[%clk 0:01:04.5]} 22. Qxd5+ {[%clk 0:01:18.4]} 22... Be6
{[%clk 0:01:04.6]} 23. Qe4 {[%clk 0:01:18.7]} 23... Bf5 {[%clk 0:00:54.3]} 24.
Qc4+ {[%clk 0:01:14.6]} 24... Be6 {[%clk 0:00:54.2]} 25. Qc3 {[%clk 0:01:12.8]}
25... b5 {[%clk 0:00:38.9]} 26. Rfd1 {[%clk 0:00:51.8]} 26... Bg4 {[%clk
0:00:20.4]} 27. e4 {[%clk 0:00:51.9]} 27... Qf7 {[%clk 0:00:16.8]} 28. Rd3
{[%clk 0:00:50.7]} 28... Qc4 {[%clk 0:00:13.6]} 29. Qxc4+ {[%clk 0:00:41.1]}
29... bxc4 {[%clk 0:00:14.5]} 30. Rda3 {[%clk 0:00:41.6]} 30... Bxf3 {[%clk
0:00:12.4]} 31. Rxf3 {[%clk 0:00:42.5]} 31... fxg5 {[%clk 0:00:07.8]} 32. Rb1
{[%clk 0:00:43]} 32... Be7 {[%clk 0:00:05.6]} 33. Rb7 {[%clk 0:00:42.5]} 33...
Bf8 {[%clk 0:00:01.7]} 34. Rxf8+ {[%clk 0:00:42]} 34... Rxf8 {[%clk 0:00:02.6]}
35. Rg7+ {[%clk 0:00:42.4]} 35... Kh8 {[%clk 0:00:02.7]} 36. Bxe5 {[%clk
0:00:43.3]} 36... Rae8 {[%clk 0:00:01]} 37. Bc3 {[%clk 0:00:43.5]} 1-0

[Event "Late-Titled-Tuesday-Blitz-June-25-2024"]
[Site "Chess.com"]
[Date "2024.06.25"]
[Round "1"]
[White "Sanan_Sjugirov"]
[Black "ybothg"]
[Result "1-0"]
[WhiteElo "3013"]
[BlackElo "2513"]
[TimeControl "180+1"]
[EndTime "14:06:42 PDT"]
[Termination "Sanan_Sjugirov won by resignation"]

1. e4 {[%clk 0:03:00.9]} 1... c5 {[%clk 0:02:59.7]} 2. Nf3 {[%clk 0:03:00.7]}
2... e6 {[%clk 0:02:57.8]} 3. d4 {[%clk 0:03:00.2]} 3... cxd4 {[%clk 0:02:58.7]}
4. Nxd4 {[%clk 0:03:00.6]} 4... Nf6 {[%clk 0:02:59.3]} 5. Nc3 {[%clk 0:03:00.5]}
5... Nc6 {[%clk 0:02:59]} 6. Ndb5 {[%clk 0:02:58.3]} 6... Bb4 {[%clk 0:02:57.4]}
7. a3 {[%clk 0:02:57.6]} 7... Bxc3+ {[%clk 0:02:57.9]} 8. Nxc3 {[%clk
0:02:58.5]} 8... d5 {[%clk 0:02:58.3]} 9. Bd3 {[%clk 0:02:57.9]} 9... O-O {[%clk
0:02:56]} 10. O-O {[%clk 0:02:51.5]} 10... d4 {[%clk 0:02:55.9]} 11. Ne2 {[%clk
0:02:51.3]} 11... e5 {[%clk 0:02:56.6]} 12. Ng3 {[%clk 0:02:45.2]} 12... Re8
{[%clk 0:02:55]} 13. h3 {[%clk 0:02:42.4]} 13... Be6 {[%clk 0:02:55.1]} 14. f4
{[%clk 0:02:39.9]} 14... exf4 {[%clk 0:02:56]} 15. Bxf4 {[%clk 0:02:40.2]} 15...
Qb6 {[%clk 0:02:48.8]} 16. b4 {[%clk 0:02:35.2]} 16... a5 {[%clk 0:02:48.5]} 17.
b5 {[%clk 0:02:34.2]} 17... Ne7 {[%clk 0:02:46.2]} 18. Bd2 {[%clk 0:02:06.2]}
18... Ng6 {[%clk 0:02:38.2]} 19. Rxf6 {[%clk 0:02:04.8]} 19... gxf6 {[%clk
0:02:37.4]} 20. Nh5 {[%clk 0:02:05.2]} 20... Bd7 {[%clk 0:02:28.2]} 21. Qf3
{[%clk 0:01:59.3]} 21... Re6 {[%clk 0:02:19.8]} 22. Rf1 {[%clk 0:01:58.3]} 22...
Bxb5 {[%clk 0:01:55.2]} 23. Rb1 {[%clk 0:01:57.1]} 23... Bxd3 {[%clk 0:01:20.4]}
24. Rxb6 {[%clk 0:01:55.4]} 24... Bxe4 {[%clk 0:01:21.3]} 25. Nxf6+ {[%clk
0:01:54]} 25... Kh8 {[%clk 0:01:09]} 26. Qb3 {[%clk 0:01:46.8]} 26... Bc6 {[%clk
0:01:01.4]} 27. Nh5 {[%clk 0:01:27.1]} 27... Rae8 {[%clk 0:00:43.8]} 28. Qc4
{[%clk 0:01:16.7]} 28... Ne5 {[%clk 0:00:24.8]} 29. Qxd4 {[%clk 0:01:11.4]}
29... Rg6 {[%clk 0:00:24.8]} 30. Rxc6 {[%clk 0:00:55.8]} 30... bxc6 {[%clk
0:00:20.3]} 31. Bf4 {[%clk 0:00:55]} 31... f6 {[%clk 0:00:20.6]} 32. Bxe5 {[%clk
0:00:53.2]} 32... fxe5 {[%clk 0:00:21.5]} 33. Qd7 {[%clk 0:00:46.5]} 33... Reg8
{[%clk 0:00:13.5]} 34. g4 {[%clk 0:00:46.2]} 34... h6 {[%clk 0:00:11.2]} 35. Qe7
{[%clk 0:00:45.2]} 35... Rg5 {[%clk 0:00:10.8]} 36. Nf6 {[%clk 0:00:42.8]} 36...
R5g7 {[%clk 0:00:09.1]} 37. Qxe5 {[%clk 0:00:42.5]} 37... Re8 {[%clk 0:00:07.2]}
38. Nxe8 {[%clk 0:00:41.8]} 1-0

[Event "Late-Titled-Tuesday-Blitz-June-25-2024"]
[Site "Chess.com"]
[Date "2024.06.25"]
[Round "1"]
[White "JackRodgers"]
[Black "dropstoneDP"]
[Result "1/2-1/2"]
[WhiteElo "2524"]
[BlackElo "3023"]
[TimeControl "180+1"]
[EndTime "14:06:47 PDT"]
[Termination "Game drawn by repetition"]

1. d4 {[%clk 0:03:00.9]} 1... d5 {[%clk 0:02:59.7]} 2. Bg5 {[%clk 0:03:00]} 2...
h6 {[%clk 0:02:58.6]} 3. Bh4 {[%clk 0:02:59]} 3... c6 {[%clk 0:02:59]} 4. e3
{[%clk 0:02:58.8]} 4... Qb6 {[%clk 0:02:58.7]} 5. Qc1 {[%clk 0:02:58.9]} 5... e5
{[%clk 0:02:58.4]} 6. Nf3 {[%clk 0:02:58.6]} 6... exd4 {[%clk 0:02:57.1]} 7.
exd4 {[%clk 0:02:54.4]} 7... Be7 {[%clk 0:02:57.4]} 8. Bxe7 {[%clk 0:02:53.4]}
8... Nxe7 {[%clk 0:02:58.3]} 9. Bd3 {[%clk 0:02:47.9]} 9... O-O {[%clk
0:02:57.3]} 10. O-O {[%clk 0:02:47.5]} 10... Bf5 {[%clk 0:02:56.5]} 11. Bxf5
{[%clk 0:02:46.8]} 11... Nxf5 {[%clk 0:02:57.4]} 12. c3 {[%clk 0:02:47.6]} 12...
Qc7 {[%clk 0:02:51.4]} 13. Re1 {[%clk 0:02:43.6]} 13... Nd7 {[%clk 0:02:50.3]}
14. Nbd2 {[%clk 0:02:43.2]} 14... Rfe8 {[%clk 0:02:49.2]} 15. Nf1 {[%clk
0:02:37.7]} 15... Rxe1 {[%clk 0:02:44.3]} 16. Qxe1 {[%clk 0:02:38.6]} 16... Nd6
{[%clk 0:02:43.6]} 17. Ng3 {[%clk 0:02:24.5]} 17... Re8 {[%clk 0:02:42.6]} 18.
Qf1 {[%clk 0:02:18.8]} 18... Qb6 {[%clk 0:02:34.7]} 19. b3 {[%clk 0:02:13.7]}
19... Qa5 {[%clk 0:02:31.5]} 20. Qd3 {[%clk 0:02:11.5]} 20... Ne4 {[%clk
0:02:27.8]} 21. Ne2 {[%clk 0:02:07.2]} 21... Qa3 {[%clk 0:02:23.3]} 22. Qc2
{[%clk 0:02:01.5]} 22... Qd6 {[%clk 0:02:14.5]} 23. Re1 {[%clk 0:01:57.9]} 23...
Re7 {[%clk 0:02:12.9]} 24. Kf1 {[%clk 0:01:50.5]} 24... Nf8 {[%clk 0:02:09.6]}
25. Ng3 {[%clk 0:01:50.5]} 25... Nxg3+ {[%clk 0:02:05.2]} 26. hxg3 {[%clk
0:01:49.7]} 26... Rxe1+ {[%clk 0:02:05.8]} 27. Kxe1 {[%clk 0:01:48.2]} 27... Ne6
{[%clk 0:02:06.7]} 28. b4 {[%clk 0:01:45.1]} 28... a5 {[%clk 0:01:57.3]} 29. a3
{[%clk 0:01:43.6]} 29... axb4 {[%clk 0:01:53.3]} 30. axb4 {[%clk 0:01:43.2]}
30... Qe7 {[%clk 0:01:39.3]} 31. Kf1 {[%clk 0:01:39.3]} 31... Ng5 {[%clk
0:01:33.8]} 32. Nxg5 {[%clk 0:01:35.9]} 32... Qxg5 {[%clk 0:01:34.5]} 33. Ke2
{[%clk 0:01:24.6]} 33... h5 {[%clk 0:01:30.4]} 34. Qd3 {[%clk 0:01:15.3]} 34...
Kf8 {[%clk 0:01:25.1]} 35. b5 {[%clk 0:01:06.6]} 35... Qc1 {[%clk 0:01:24.5]}
36. bxc6 {[%clk 0:01:06.1]} 36... bxc6 {[%clk 0:01:24.1]} 37. Qd2 {[%clk
0:01:06.2]} 37... Qb1 {[%clk 0:01:17.7]} 38. Qf4 {[%clk 0:01:00]} 38... Qc2+
{[%clk 0:01:16.1]} 39. Qd2 {[%clk 0:00:59.8]} 39... Qe4+ {[%clk 0:01:15.9]} 40.
Kf1 {[%clk 0:00:58.1]} 40... f6 {[%clk 0:01:15]} 41. f3 {[%clk 0:00:57.2]} 41...
Qb1+ {[%clk 0:01:13.6]} 42. Kf2 {[%clk 0:00:57.4]} 42... Kf7 {[%clk 0:01:13.5]}
43. Qe2 {[%clk 0:00:38.2]} 43... g5 {[%clk 0:01:00.4]} 44. f4 {[%clk 0:00:35.2]}
44... Kg6 {[%clk 0:00:54.7]} 45. Qe8+ {[%clk 0:00:31]} 45... Kg7 {[%clk
0:00:48.2]} 46. Qe7+ {[%clk 0:00:29.4]} 46... Kg6 {[%clk 0:00:48.5]} 47. Qe8+
{[%clk 0:00:29.8]} 47... Kg7 {[%clk 0:00:46.8]} 48. Qe7+ {[%clk 0:00:30]} 48...
Kg6 {[%clk 0:00:46.6]} 49. Qe8+ {[%clk 0:00:30.4]} 1/2-1/2

[Event "Late-Titled-Tuesday-Blitz-June-25-2024"]
[Site "Chess.com"]
[Date "2024.06.25"]
[Round "1"]
[White "ArchibaldCerveza29"]
[Black "JanistanTV"]
[Result "0-1"]
[WhiteElo "2393"]
[BlackElo "2675"]
[TimeControl "180+1"]
[EndTime "14:06:48 PDT"]
[Termination "JanistanTV won by resignation"]

1. e4 {[%clk 0:02:59.3]} 1... c5 {[%clk 0:02:54.7]} 2. Nf3 {[%clk 0:02:57.5]}
2... e6 {[%clk 0:02:52.8]} 3. d4 {[%clk 0:02:52.6]} 3... cxd4 {[%clk 0:02:52.3]}
4. Nxd4 {[%clk 0:02:53.5]} 4... Nc6 {[%clk 0:02:51.3]} 5. Nc3 {[%clk 0:02:50.8]}
5... Nf6 {[%clk 0:02:50.5]} 6. a3 {[%clk 0:02:31.9]} 6... Be7 {[%clk 0:02:37.8]}
7. Be3 {[%clk 0:02:28.7]} 7... O-O {[%clk 0:02:36.5]} 8. Be2 {[%clk 0:02:23.9]}
8... d5 {[%clk 0:02:35.1]} 9. exd5 {[%clk 0:02:21.6]} 9... Nxd5 {[%clk
0:02:35.1]} 10. Nxd5 {[%clk 0:02:18.7]} 10... Qxd5 {[%clk 0:02:28]} 11. Bf3
{[%clk 0:02:13.4]} 11... Qc4 {[%clk 0:02:26.2]} 12. Nxc6 {[%clk 0:02:08]} 12...
bxc6 {[%clk 0:02:24.5]} 13. Be2 {[%clk 0:02:06.4]} 13... Qd5 {[%clk 0:02:17.8]}
14. O-O {[%clk 0:01:46.9]} 14... Bf6 {[%clk 0:02:15.3]} 15. c3 {[%clk 0:01:42]}
15... a5 {[%clk 0:02:11.8]} 16. a4 {[%clk 0:01:37.4]} 16... Ba6 {[%clk
0:02:07.9]} 17. Bf3 {[%clk 0:01:20.5]} 17... Qc4 {[%clk 0:02:02.6]} 18. Re1
{[%clk 0:01:19.5]} 18... Rfd8 {[%clk 0:02:00.2]} 19. Qc2 {[%clk 0:01:18.1]}
19... Bb7 {[%clk 0:01:35.2]} 20. Rad1 {[%clk 0:01:13]} 20... h6 {[%clk
0:01:34.3]} 21. g3 {[%clk 0:00:52.3]} 21... Rxd1 {[%clk 0:01:25.6]} 22. Rxd1
{[%clk 0:00:51.4]} 22... Rd8 {[%clk 0:01:25.2]} 23. Rxd8+ {[%clk 0:00:36]} 23...
Bxd8 {[%clk 0:01:26.1]} 24. b3 {[%clk 0:00:34.1]} 24... Qa6 {[%clk 0:01:21.8]}
25. Qd2 {[%clk 0:00:24.1]} 25... Bf6 {[%clk 0:01:18.6]} 26. Be2 {[%clk
0:00:20.4]} 26... Qa8 {[%clk 0:01:16]} 27. Bf3 {[%clk 0:00:16.8]} 27... c5
{[%clk 0:01:11.8]} 28. Bxb7 {[%clk 0:00:15.2]} 28... Qxb7 {[%clk 0:01:12.7]} 29.
Qc2 {[%clk 0:00:10.4]} 29... Qc6 {[%clk 0:00:58.8]} 30. c4 {[%clk 0:00:10.6]}
30... Bd4 {[%clk 0:00:58.3]} 31. Qd3 {[%clk 0:00:09.9]} 31... e5 {[%clk
0:00:57.4]} 32. Kf1 {[%clk 0:00:07.4]} 32... Qh1+ {[%clk 0:00:53.5]} 33. Ke2
{[%clk 0:00:07.8]} 33... Qxh2 {[%clk 0:00:54]} 34. Qf5 {[%clk 0:00:06.2]} 34...
g6 {[%clk 0:00:48]} 35. Qc8+ {[%clk 0:00:06.3]} 35... Kg7 {[%clk 0:00:47.6]} 36.
Bxd4 {[%clk 0:00:07.2]} 36... cxd4 {[%clk 0:00:47.1]} 37. Qc7 {[%clk 0:00:07.6]}
37... Qh5+ {[%clk 0:00:46.8]} 38. Kf1 {[%clk 0:00:07.4]} 38... d3 {[%clk
0:00:41.7]} 39. Kg2 {[%clk 0:00:06.7]} 39... d2 {[%clk 0:00:40.6]} 0-1

[Event "Late-Titled-Tuesday-Blitz-June-25-2024"]
[Site "Chess.com"]
[Date "2024.06.25"]
[Round "1"]
[White "djano"]
[Black "canary2016"]
[Result "1/2-1/2"]
[WhiteElo "2565"]
[BlackElo "2226"]
[TimeControl "180+1"]
[EndTime "14:06:50 PDT"]
[Termination "Game drawn by repetition"]

1. e4 {[%clk 0:03:00.9]} 1... c5 {[%clk 0:02:59.3]} 2. Nc3 {[%clk 0:02:59.2]}
2... d6 {[%clk 0:02:57.9]} 3. f4 {[%clk 0:02:59.3]} 3... Nc6 {[%clk 0:02:57.1]}
4. Nf3 {[%clk 0:02:59.4]} 4... e6 {[%clk 0:02:53.5]} 5. Bb5 {[%clk 0:02:59.5]}
5... g6 {[%clk 0:02:51.7]} 6. O-O {[%clk 0:02:57.5]} 6... Bg7 {[%clk 0:02:52.1]}
7. Bxc6+ {[%clk 0:02:53.8]} 7... bxc6 {[%clk 0:02:52.1]} 8. Qe1 {[%clk
0:02:51.6]} 8... Ne7 {[%clk 0:02:52]} 9. d3 {[%clk 0:02:50.5]} 9... O-O {[%clk
0:02:52.1]} 10. Qh4 {[%clk 0:02:49]} 10... d5 {[%clk 0:02:47.3]} 11. f5 {[%clk
0:02:44]} 11... exf5 {[%clk 0:02:42.5]} 12. Bh6 {[%clk 0:02:36.7]} 12... fxe4
{[%clk 0:02:35]} 13. Ng5 {[%clk 0:02:34.5]} 13... Bd4+ {[%clk 0:02:10.8]} 14.
Kh1 {[%clk 0:02:32.3]} 14... Nf5 {[%clk 0:01:46.7]} 15. Rxf5 {[%clk 0:02:32]}
15... Bxf5 {[%clk 0:01:44.3]} 16. Bxf8 {[%clk 0:02:31.4]} 16... Kxf8 {[%clk
0:01:44.3]} 17. dxe4 {[%clk 0:02:08.4]} 17... dxe4 {[%clk 0:01:38]} 18. Rf1
{[%clk 0:02:03.8]} 18... h5 {[%clk 0:01:26.9]} 19. Qf4 {[%clk 0:01:23]} 19...
Bxc3 {[%clk 0:01:16.4]} 20. bxc3 {[%clk 0:01:21.1]} 20... Kg7 {[%clk 0:01:16.3]}
21. Nxe4 {[%clk 0:01:11]} 21... Bxe4 {[%clk 0:01:05.8]} 22. Qxe4 {[%clk
0:01:11.9]} 22... Qd5 {[%clk 0:01:01.7]} 23. Qe7 {[%clk 0:01:09.6]} 23... Qxa2
{[%clk 0:00:52.9]} 24. Qxc5 {[%clk 0:00:45.7]} 24... Qxc2 {[%clk 0:00:50.8]} 25.
Qxc6 {[%clk 0:00:44.5]} 25... Rf8 {[%clk 0:00:46.8]} 26. h3 {[%clk 0:00:39.7]}
26... Qa2 {[%clk 0:00:39.2]} 27. c4 {[%clk 0:00:37.4]} 27... a5 {[%clk
0:00:38.9]} 28. c5 {[%clk 0:00:36.6]} 28... a4 {[%clk 0:00:38.9]} 29. Qf6+
{[%clk 0:00:36.5]} 29... Kg8 {[%clk 0:00:39.1]} 30. c6 {[%clk 0:00:37.4]} 30...
Qc4 {[%clk 0:00:35.4]} 31. Rf3 {[%clk 0:00:27.2]} 31... Rc8 {[%clk 0:00:34.4]}
32. Rc3 {[%clk 0:00:19.6]} 32... Qe6 {[%clk 0:00:28.5]} 33. Qf3 {[%clk
0:00:18.1]} 33... Qe1+ {[%clk 0:00:25.1]} 34. Kh2 {[%clk 0:00:18.6]} 34... Qe5+
{[%clk 0:00:25]} 35. Kh1 {[%clk 0:00:19.1]} 35... Qe1+ {[%clk 0:00:25]} 36. Kh2
{[%clk 0:00:19.4]} 36... Qe5+ {[%clk 0:00:25.3]} 37. Kh1 {[%clk 0:00:17.8]}
37... Qe1+ {[%clk 0:00:20.5]} 1/2-1/2

[Event "Late-Titled-Tuesday-Blitz-June-25-2024"]
[Site "Chess.com"]
[Date "2024.06.25"]
[Round "1"]
[White "imdarealist"]
[Black "Malev212"]
[Result "0-1"]
[WhiteElo "2279"]
[BlackElo "2605"]
[TimeControl "180+1"]
[EndTime "14:06:52 PDT"]
[Termination "Malev212 won on time"]

1. d4 {[%clk 0:02:58.7]} 1... g6 {[%clk 0:02:57.1]} 2. Bf4 {[%clk 0:02:58]} 2...
Bg7 {[%clk 0:02:56.8]} 3. Nf3 {[%clk 0:02:57.6]} 3... d6 {[%clk 0:02:53.3]} 4.
e3 {[%clk 0:02:57.8]} 4... Nd7 {[%clk 0:02:48]} 5. h3 {[%clk 0:02:57.4]} 5... e5
{[%clk 0:02:46.9]} 6. Bh2 {[%clk 0:02:58.1]} 6... Nh6 {[%clk 0:02:45.7]} 7. c4
{[%clk 0:02:55.8]} 7... O-O {[%clk 0:02:45.1]} 8. Nc3 {[%clk 0:02:56]} 8... exd4
{[%clk 0:02:39.6]} 9. exd4 {[%clk 0:02:55.6]} 9... Nf5 {[%clk 0:02:35.5]} 10.
Be2 {[%clk 0:02:53.4]} 10... c5 {[%clk 0:02:27]} 11. dxc5 {[%clk 0:02:32.1]}
11... Nxc5 {[%clk 0:02:26.2]} 12. Rc1 {[%clk 0:02:26]} 12... Re8 {[%clk
0:02:19.5]} 13. O-O {[%clk 0:02:25.7]} 13... a6 {[%clk 0:02:10.5]} 14. b4 {[%clk
0:02:19.3]} 14... Ne6 {[%clk 0:02:03.4]} 15. Nd5 {[%clk 0:02:02.9]} 15... Nfd4
{[%clk 0:01:40.7]} 16. Re1 {[%clk 0:01:53.7]} 16... b5 {[%clk 0:01:27.9]} 17.
cxb5 {[%clk 0:01:33.4]} 17... axb5 {[%clk 0:01:26.8]} 18. Nxd4 {[%clk
0:01:27.8]} 18... Nxd4 {[%clk 0:01:24.7]} 19. Nc7 {[%clk 0:01:11.6]} 19... Nxe2+
{[%clk 0:01:05.9]} 20. Rxe2 {[%clk 0:01:10.2]} 20... Rxe2 {[%clk 0:01:05]} 21.
Nxa8 {[%clk 0:00:44.9]} 21... Rxa2 {[%clk 0:00:44.1]} 22. Qd5 {[%clk 0:00:20.1]}
22... Be6 {[%clk 0:00:36.7]} 23. Qc6 {[%clk 0:00:14.6]} 23... Qxa8 {[%clk
0:00:35.5]} 24. Qxd6 {[%clk 0:00:11.6]} 24... h5 {[%clk 0:00:32.7]} 25. Bf4
{[%clk 0:00:11.4]} 25... Qe4 {[%clk 0:00:30.3]} 26. Qb8+ {[%clk 0:00:05.2]}
26... Kh7 {[%clk 0:00:28.7]} 27. Be3 {[%clk 0:00:04]} 27... Bd5 {[%clk
0:00:27.1]} 28. Qg3 {[%clk 0:00:02.5]} 28... Qxb4 {[%clk 0:00:25.7]} 0-1

[Event "Late-Titled-Tuesday-Blitz-June-25-2024"]
[Site "Chess.com"]
[Date "2024.06.25"]
[Round "1"]
[White "JEHUBNER"]
[Black "Lady_Nika"]
[Result "0-1"]
[WhiteElo "1974"]
[BlackElo "2543"]
[TimeControl "180+1"]
[EndTime "14:06:54 PDT"]
[Termination "Lady_Nika won by checkmate"]

1. e4 {[%clk 0:03:00.9]} 1... e5 {[%clk 0:02:52.7]} 2. Nf3 {[%clk 0:03:00.3]}
2... Nc6 {[%clk 0:02:52.3]} 3. Bc4 {[%clk 0:03:00.6]} 3... Bc5 {[%clk
0:02:45.4]} 4. O-O {[%clk 0:03:00.7]} 4... Nf6 {[%clk 0:02:45.1]} 5. c3 {[%clk
0:03:01.2]} 5... d6 {[%clk 0:02:38]} 6. d4 {[%clk 0:03:01.5]} 6... Bb6 {[%clk
0:02:37.4]} 7. Bg5 {[%clk 0:03:00]} 7... Bg4 {[%clk 0:02:32.7]} 8. d5 {[%clk
0:02:35.2]} 8... Ne7 {[%clk 0:02:24.2]} 9. Bxf6 {[%clk 0:02:24.7]} 9... gxf6
{[%clk 0:02:23.5]} 10. Nbd2 {[%clk 0:02:24.9]} 10... Qd7 {[%clk 0:02:20.5]} 11.
a4 {[%clk 0:01:53]} 11... a6 {[%clk 0:02:15.7]} 12. b4 {[%clk 0:01:48.3]} 12...
O-O {[%clk 0:02:06.2]} 13. Qc2 {[%clk 0:01:35.6]} 13... Kh8 {[%clk 0:02:04.3]}
14. Kh1 {[%clk 0:01:32.2]} 14... f5 {[%clk 0:02:00.4]} 15. exf5 {[%clk
0:01:24.9]} 15... Bxf5 {[%clk 0:01:58.4]} 16. Ne4 {[%clk 0:01:20.3]} 16... Bxe4
{[%clk 0:01:50.3]} 17. Qxe4 {[%clk 0:01:19.8]} 17... f5 {[%clk 0:01:50.3]} 18.
Qh4 {[%clk 0:01:19.2]} 18... Ng6 {[%clk 0:01:50.1]} 19. Qh6 {[%clk 0:01:14.4]}
19... Rg8 {[%clk 0:01:34.9]} 20. Ng5 {[%clk 0:01:12]} 20... Raf8 {[%clk
0:01:24.3]} 21. Ne6 {[%clk 0:01:11.2]} 21... Rf6 {[%clk 0:01:21.1]} 22. f4
{[%clk 0:01:01.8]} 22... Qf7 {[%clk 0:00:42.7]} 23. Qh3 {[%clk 0:00:29.3]} 23...
e4 {[%clk 0:00:30.9]} 24. Rae1 {[%clk 0:00:18]} 24... Nf8 {[%clk 0:00:30.6]} 25.
Ng5 {[%clk 0:00:17.9]} 25... Qg7 {[%clk 0:00:30.3]} 26. Ne6 {[%clk 0:00:16.9]}
26... Nxe6 {[%clk 0:00:30]} 27. dxe6 {[%clk 0:00:17.4]} 27... Rh6 {[%clk
0:00:30.1]} 28. e7 {[%clk 0:00:12]} 28... Rxh3 {[%clk 0:00:25.9]} 29. Bxg8
{[%clk 0:00:12.6]} 29... Rxh2+ {[%clk 0:00:18.7]} 30. Kxh2 {[%clk 0:00:12.2]}
30... Qxe7 {[%clk 0:00:18.4]} 31. Bb3 {[%clk 0:00:11.1]} 31... Qh4# {[%clk
0:00:18]} 0-1

[Event "Late-Titled-Tuesday-Blitz-June-25-2024"]
[Site "Chess.com"]
[Date "2024.06.25"]
[Round "1"]
[White "Dedic8"]
[Black "toninhojit"]
[Result "1-0"]
[WhiteElo "2943"]
[BlackElo "2502"]
[TimeControl "180+1"]
[EndTime "14:06:55 PDT"]
[Termination "Dedic8 won by resignation"]

1. d4 {[%clk 0:03:00.9]} 1... Nf6 {[%clk 0:02:59.2]} 2. c4 {[%clk 0:03:01.3]}
2... e6 {[%clk 0:02:59.4]} 3. Nc3 {[%clk 0:03:01.9]} 3... d5 {[%clk 0:03:00]} 4.
cxd5 {[%clk 0:03:02]} 4... exd5 {[%clk 0:03:00.9]} 5. Bg5 {[%clk 0:03:02.2]}
5... c6 {[%clk 0:02:59.7]} 6. e3 {[%clk 0:03:02.1]} 6... Be7 {[%clk 0:02:58.4]}
7. Bd3 {[%clk 0:03:02.4]} 7... h6 {[%clk 0:02:59]} 8. Bh4 {[%clk 0:03:02.5]}
8... O-O {[%clk 0:02:57.9]} 9. Nge2 {[%clk 0:03:02.8]} 9... Re8 {[%clk
0:02:54.1]} 10. f3 {[%clk 0:03:02.8]} 10... c5 {[%clk 0:02:53.2]} 11. O-O {[%clk
0:03:02.2]} 11... Nc6 {[%clk 0:02:53.1]} 12. Kh1 {[%clk 0:03:02.5]} 12... cxd4
{[%clk 0:02:49.8]} 13. exd4 {[%clk 0:03:01.4]} 13... Nh5 {[%clk 0:02:46.6]} 14.
Bf2 {[%clk 0:02:59.4]} 14... Be6 {[%clk 0:02:42.4]} 15. a3 {[%clk 0:02:58.3]}
15... Bd6 {[%clk 0:02:41.1]} 16. Qd2 {[%clk 0:02:47.1]} 16... Qf6 {[%clk
0:02:35.8]} 17. Rae1 {[%clk 0:02:35.7]} 17... Nf4 {[%clk 0:02:34.1]} 18. Nxf4
{[%clk 0:02:33]} 18... Bxf4 {[%clk 0:02:35]} 19. Qd1 {[%clk 0:02:26.6]} 19...
Kf8 {[%clk 0:02:31.2]} 20. Bb1 {[%clk 0:02:25.7]} 20... Bd6 {[%clk 0:02:21.6]}
21. Nb5 {[%clk 0:02:16]} 21... Bb8 {[%clk 0:02:13.1]} 22. Qc2 {[%clk 0:02:15.2]}
22... g6 {[%clk 0:02:12.7]} 23. Qc5+ {[%clk 0:02:12.5]} 23... Kg7 {[%clk
0:02:11]} 24. Nd6 {[%clk 0:02:11.9]} 24... Bxd6 {[%clk 0:02:06.7]} 25. Qxd6
{[%clk 0:02:11.9]} 25... Nxd4 {[%clk 0:02:05]} 26. Qb4 {[%clk 0:01:54.3]} 26...
Nc6 {[%clk 0:01:23.3]} 27. Qxb7 {[%clk 0:01:53.5]} 27... Rac8 {[%clk 0:01:22.9]}
28. Bd3 {[%clk 0:01:40.9]} 28... Bf5 {[%clk 0:01:20.3]} 29. Bb5 {[%clk 0:01:37]}
29... Rxe1 {[%clk 0:01:17.2]} 30. Bxe1 {[%clk 0:01:21.6]} 30... Nd4 {[%clk
0:01:08.9]} 31. Bc3 {[%clk 0:01:16.5]} 31... Rxc3 {[%clk 0:00:32.1]} 32. bxc3
{[%clk 0:01:17.4]} 32... Ne6 {[%clk 0:00:27.9]} 33. Be8 {[%clk 0:01:17.8]} 33...
d4 {[%clk 0:00:23.7]} 34. cxd4 {[%clk 0:01:14.2]} 34... Nxd4 {[%clk 0:00:24.6]}
35. Qxa7 {[%clk 0:01:12.4]} 35... Be6 {[%clk 0:00:24.2]} 36. Qb6 {[%clk
0:01:05.5]} 36... Nf5 {[%clk 0:00:21.8]} 37. Rb1 {[%clk 0:01:02.9]} 37... Qh4
{[%clk 0:00:21.7]} 38. Qb2+ {[%clk 0:00:50.3]} 38... Kf8 {[%clk 0:00:20.8]} 39.
Bb5 {[%clk 0:00:48.2]} 39... Ng3+ {[%clk 0:00:18.5]} 40. Kg1 {[%clk 0:00:48.5]}
40... Qd4+ {[%clk 0:00:19.1]} 41. Qf2 {[%clk 0:00:48]} 41... Nf5 {[%clk
0:00:09.9]} 42. Qxd4 {[%clk 0:00:47.5]} 42... Nxd4 {[%clk 0:00:10.8]} 43. a4
{[%clk 0:00:48]} 43... Bf5 {[%clk 0:00:10.7]} 44. Rd1 {[%clk 0:00:46]} 44... Ne6
{[%clk 0:00:09.2]} 45. a5 {[%clk 0:00:45.8]} 45... Nc5 {[%clk 0:00:09.6]} 46. a6
{[%clk 0:00:45.2]} 1-0